fUST/lending_fUST_20250706
["ID","MTS","AMOUNT","RATE_DAILY","PERIOD"]
[369812320,1751731605508,278.663483,0.00013699,2]
[369812346,1751731833057,1000.0,0.0002465,60]
[369812353,1751731838236,-359.40697938,0.00017817,2]
[369812354,1751731838246,-438.38514329,0.000189,2]
[369812355,1751731838256,-36.36143844,0.00019,2]
[369812356,1751731838268,-266.27543665,0.00019,2]
[369812357,1751731838278,-203.40307189,0.00019078,2]
[369812359,1751731838288,-444.51529926,0.00019078,2]
[369812364,1751731838323,-481.91093183,0.00019078,2]
[369812375,1751731838424,-611.556,0.00019078,2]
[369812377,1751731838436,-1397.76432504,0.00019078,2]
[369812402,1751731838681,-4564.25344388,0.00019078,2]
[369812404,1751731838691,-151.0,0.00019166,2]
[369812406,1751731838701,-300.0,0.00019167,2]
[369812408,1751731838712,-750.52,0.00019168,3]
[369812410,1751731838721,-375.26,0.00019168,3]
[369812412,1751731838731,-187.63,0.00019168,3]
[369812414,1751731838740,-562.89,0.00019168,3]
[369812416,1751731838750,-9642.90366112,0.00019177,2]
[369812418,1751731838760,-155.0,0.00019177,2]
[369812419,1751731838770,-500.0,0.00019177,2]
[369812420,1751731838780,-500.0,0.00019177,2]
[369812421,1751731838789,-500.0,0.00019177,2]
[369812423,1751731838798,-500.0,0.00019177,2]
[369812425,1751731838807,-500.0,0.00019177,2]
[369812427,1751731838817,-500.0,0.00019177,2]
[369812429,1751731838826,-500.0,0.00019177,2]
[369812431,1751731838836,-300.0,0.00019177,2]
[369812433,1751731838848,-500.0,0.00019177,2]
[369812434,1751731838858,-350.80056693,0.00019177,2]
[369812436,1751731838869,-500.0,0.00019177,2]
[369812438,1751731838879,-195.32199403,0.00019177,2]
[369812440,1751731838890,-460.0,0.00019178,2]
[369812442,1751731838900,-460.0,0.00019178,2]
[369812444,1751731838909,-460.0,0.00019178,2]
[369812446,1751731838919,-460.0,0.00019178,2]
[369812448,1751731838930,-460.0,0.00019178,2]
[369812450,1751731838940,-460.0,0.00019178,2]
[369812452,1751731838950,-460.0,0.00019178,2]
[369812454,1751731838959,-460.0,0.00019178,2]
[369812456,1751731838968,-460.0,0.00019178,2]
[369812458,1751731838978,-460.0,0.00019178,2]
[369812460,1751731838987,-460.0,0.00019178,2]
[369812462,1751731838997,-460.0,0.00019178,2]
[369812464,1751731839007,-460.0,0.00019178,2]
[369812466,1751731839016,-460.0,0.00019178,2]
[369812468,1751731839025,-460.0,0.00019178,2]
[369812470,1751731839035,-460.0,0.00019178,2]
[369812472,1751731839044,-460.0,0.00019178,2]
[369812474,1751731839054,-460.0,0.00019178,2]
[369812476,1751731839063,-460.0,0.00019178,2]
[369812478,1751731839073,-510.89,0.00019178,2]
[369812480,1751731839082,-460.0,0.00019178,2]
[369812481,1751731839092,-460.0,0.00019178,2]
[369812483,1751731839101,-460.0,0.00019178,2]
[369812485,1751731839111,-540.67087651,0.00019178,2]
[369812487,1751731839120,-460.0,0.00019178,2]
[369812489,1751731839130,-462.42414869,0.00019178,2]
[369812491,1751731839139,-460.0,0.00019178,2]
[369812493,1751731839149,-460.0,0.00019178,2]
[369812495,1751731839158,-460.0,0.00019178,2]
[369812497,1751731839168,-460.0,0.00019178,2]
[369812499,1751731839177,-460.0,0.00019178,2]
[369812501,1751731839187,-460.0,0.00019178,2]
[369812503,1751731839197,-460.0,0.00019178,2]
[369812505,1751731839207,-460.0,0.00019178,2]
[369812507,1751731839216,-460.0,0.00019178,2]
[369812509,1751731839226,-460.0,0.00019178,2]
[369812511,1751731839235,-821.16,0.00019178,2]
[369812513,1751731839244,-460.0,0.00019178,2]
[369812515,1751731839254,-460.0,0.00019178,2]
[369812517,1751731839263,-460.0,0.00019178,2]
[369812519,1751731839273,-460.0,0.00019178,2]
[369812521,1751731839282,-460.0,0.00019178,2]
[369812523,1751731839292,-460.0,0.00019178,2]
[369812525,1751731839301,-874.47,0.00019178,2]
[369812527,1751731839310,-460.0,0.00019178,2]
[369812529,1751731839320,-460.0,0.00019178,2]
[369812531,1751731839329,-460.0,0.00019178,2]
[369812533,1751731839338,-460.0,0.00019178,2]
[369812535,1751731839348,-460.0,0.00019178,2]
[369812537,1751731839358,-460.0,0.00019178,2]
[369812539,1751731839368,-460.0,0.00019178,2]
[369812541,1751731839377,-777.05,0.00019178,2]
[369812542,1751731839386,-460.0,0.00019178,2]
[369812544,1751731839396,-460.0,0.00019178,2]
[369812547,1751731839405,-460.0,0.00019178,2]
[369812548,1751731839415,-460.0,0.00019178,2]
[369812550,1751731839424,-460.0,0.00019178,2]
[369812552,1751731839433,-460.0,0.00019178,2]
[369812554,1751731839443,-460.0,0.00019178,2]
[369812556,1751731839452,-460.0,0.00019178,2]
[369812558,1751731839461,-460.0,0.00019178,2]
[369812560,1751731839471,-460.0,0.00019178,2]
[369812562,1751731839480,-460.0,0.00019178,2]
[369812564,1751731839489,-460.0,0.00019178,2]
[369812566,1751731839499,-460.0,0.00019178,2]
[369812568,1751731839508,-1281.91,0.00019178,2]
[369812570,1751731839518,-460.0,0.00019178,2]
[369812572,1751731839527,-460.0,0.00019178,2]
[369812574,1751731839537,-479.19,0.00019178,2]
[369812576,1751731839547,-460.0,0.00019178,2]
[369812578,1751731839556,-460.0,0.00019178,2]
[369812580,1751731839566,-227.7778026,0.00019178,2]
[369812582,1751731839575,-460.0,0.00019178,2]
[369812584,1751731839586,-460.0,0.00019178,2]
[369812586,1751731839595,-478.7,0.00019178,2]
[369812588,1751731839604,-460.0,0.00019178,2]
[369812590,1751731839614,-460.0,0.00019178,2]
[369812592,1751731839624,-460.0,0.00019178,2]
[369812594,1751731839634,-1214.92,0.00019178,2]
[369812596,1751731839644,-844.28,0.00019178,2]
[369812598,1751731839653,-460.0,0.00019178,2]
[369812600,1751731839663,-570.16290991,0.00019178,2]
[369812601,1751731839673,-460.0,0.00019178,2]
[369812603,1751731839682,-460.0,0.00019178,2]
[369812605,1751731839693,-460.0,0.00019178,2]
[369812608,1751731839703,-460.0,0.00019178,2]
[369812609,1751731839713,-460.0,0.00019178,2]
[369812611,1751731839723,-222.66706532,0.00019178,2]
[369812614,1751731839732,-460.0,0.00019178,2]
[369812616,1751731839743,-460.0,0.00019178,2]
[369812617,1751731839752,-460.0,0.00019178,2]
[369812619,1751731839761,-460.0,0.00019178,2]
[369812621,1751731839771,-399.03507217,0.00019178,2]
[369812623,1751731839781,-460.0,0.00019178,2]
[369812625,1751731839791,-460.0,0.00019178,2]
[369812627,1751731839802,-460.0,0.00019178,2]
[369812629,1751731839812,-460.0,0.00019178,2]
[369812631,1751731839821,-460.0,0.00019178,2]
[369812633,1751731839831,-460.0,0.00019178,2]
[369812635,1751731839841,-460.0,0.00019178,2]
[369812637,1751731839855,-487.31,0.00019178,2]
[369812639,1751731839865,-460.0,0.00019178,2]
[369812641,1751731839875,-460.0,0.00019178,2]
[369812643,1751731839887,-460.0,0.00019178,2]
[369812645,1751731839897,-460.0,0.00019178,2]
[369812647,1751731839907,-460.0,0.00019178,2]
[369812649,1751731839917,-465.32935796,0.00019178,2]
[369812651,1751731839928,-460.0,0.00019178,2]
[369812653,1751731839938,-460.0,0.00019178,2]
[369812655,1751731839948,-460.0,0.00019178,2]
[369812657,1751731839957,-460.0,0.00019178,2]
[369812659,1751731839967,-511.62889357,0.00019178,2]
[369812661,1751731839977,-460.0,0.00019178,2]
[369812663,1751731839987,-395.81107508,0.00019178,2]
[369812665,1751731839996,-460.0,0.00019178,2]
[369812667,1751731840007,-460.0,0.00019178,2]
[369812669,1751731840017,-460.0,0.00019178,2]
[369812671,1751731840027,-1316.65,0.00019178,2]
[369812673,1751731840036,-460.0,0.00019178,2]
[369812675,1751731840047,-460.0,0.00019178,2]
[369812677,1751731840058,-460.0,0.00019178,2]
[369812679,1751731840067,-460.0,0.00019178,2]
[369812681,1751731840077,-460.0,0.00019178,2]
[369812683,1751731840087,-460.0,0.00019178,2]
[369812685,1751731840097,-460.0,0.00019178,2]
[369812687,1751731840107,-460.0,0.00019178,2]
[369812689,1751731840117,-1058.86,0.00019178,2]
[369812691,1751731840128,-460.0,0.00019178,2]
[369812693,1751731840137,-700.42,0.00019178,2]
[369812716,1751731840147,-460.0,0.00019178,2]
[369812719,1751731840363,-460.0,0.00019178,2]
[369812720,1751731840373,-465.28147782,0.00019178,2]
[369812722,1751731840383,-460.0,0.00019178,2]
[369812724,1751731840392,-460.0,0.00019178,2]
[369812726,1751731840402,-460.0,0.00019178,2]
[369812728,1751731840412,-460.0,0.00019178,2]
[369812730,1751731840422,-460.0,0.00019178,2]
[369812732,1751731840431,-460.0,0.00019178,2]
[369812734,1751731840441,-460.0,0.00019178,2]
[369812736,1751731840450,-460.0,0.00019178,2]
[369812738,1751731840460,-580.87,0.00019178,2]
[369812740,1751731840469,-460.0,0.00019178,2]
[369812742,1751731840479,-460.0,0.00019178,2]
[369812744,1751731840489,-3001.68,0.00019178,2]
[369812746,1751731840498,-1157.82,0.00019178,2]
[369812748,1751731840508,-460.0,0.00019178,2]
[369812750,1751731840517,-808.98,0.00019178,2]
[369812752,1751731840526,-460.0,0.00019178,2]
[369812754,1751731840535,-500.0,0.00019178,2]
[369812755,1751731840545,-500.0,0.00019178,2]
[369812757,1751731840555,-500.0,0.00019178,2]
[369812759,1751731840564,-500.0,0.00019178,2]
[369812761,1751731840574,-500.0,0.00019178,2]
[369812763,1751731840584,-458.41108966,0.00019178,2]
[369812765,1751731840593,-500.0,0.00019178,2]
[369812767,1751731840603,-500.0,0.00019178,2]
[369812769,1751731840612,-500.0,0.00019178,2]
[369812771,1751731840622,-500.0,0.00019178,2]
[369812773,1751731840631,-500.0,0.00019178,2]
[369812775,1751731840641,-500.0,0.00019178,2]
[369812777,1751731840651,-500.0,0.00019178,2]
[369812779,1751731840660,-500.0,0.00019178,2]
[369812781,1751731840670,-500.0,0.00019178,2]
[369812783,1751731840679,-482.96951179,0.00019178,2]
[369812785,1751731840688,-500.0,0.00019178,2]
[369812787,1751731840697,-500.0,0.00019178,2]
[369812789,1751731840707,-500.0,0.00019178,2]
[369812791,1751731840717,-500.0,0.00019178,2]
[369812793,1751731840726,-500.0,0.00019178,2]
[369812795,1751731840735,-500.0,0.00019178,2]
[369812798,1751731840745,-500.0,0.00019178,2]
[369812800,1751731840754,-500.0,0.00019178,2]
[369812802,1751731840764,-460.0,0.00019178,2]
[369812805,1751731840774,-460.0,0.00019178,2]
[369812808,1751731840783,-460.0,0.00019178,2]
[369812810,1751731840792,-460.0,0.00019178,2]
[369812813,1751731840802,-460.0,0.00019178,2]
[369812815,1751731840811,-460.0,0.00019178,2]
[369812818,1751731840820,-460.0,0.00019178,2]
[369812821,1751731840830,-460.0,0.00019178,2]
[369812824,1751731840840,-460.0,0.00019178,2]
[369812826,1751731840853,-499.99999999,0.00019178,2]
[369812829,1751731840864,-460.0,0.00019178,2]
[369812832,1751731840874,-460.0,0.00019178,2]
[369812835,1751731840885,-203.12363446,0.00019178,2]
[369812837,1751731840895,-460.0,0.00019178,2]
[369812841,1751731840906,-460.0,0.00019178,2]
[369812844,1751731840915,-460.0,0.00019178,2]
[369812847,1751731840928,-460.0,0.00019178,2]
[369812851,1751731840938,-460.0,0.00019178,2]
[369812855,1751731840947,-460.0,0.00019178,2]
[369812857,1751731840957,-7398.21,0.00019178,2]
[369812860,1751731840966,-460.0,0.00019178,2]
[369812863,1751731840976,-460.0,0.00019178,2]
[369812866,1751731840986,-460.0,0.00019178,2]
[369812867,1751731840995,-2421.71,0.00019178,2]
[369812870,1751731841005,-332.16239496,0.00019178,2]
[369812872,1751731841015,-460.0,0.00019178,2]
[369812874,1751731841025,-460.0,0.00019178,2]
[369812876,1751731841034,-460.0,0.00019178,2]
[369812878,1751731841044,-460.0,0.00019178,2]
[369812880,1751731841054,-460.0,0.00019178,2]
[369812882,1751731841063,-460.0,0.00019178,2]
[369812884,1751731841073,-690.61,0.00019178,2]
[369812886,1751731841082,-460.0,0.00019178,2]
[369812888,1751731841093,-466.63181099,0.00019178,2]
[369812890,1751731841103,-460.0,0.00019178,2]
[369812892,1751731841112,-460.0,0.00019178,2]
[369812894,1751731841122,-5605.89,0.00019178,2]
[369812896,1751731841131,-460.0,0.00019178,2]
[369812897,1751731841141,-220.37742404,0.00019178,2]
[369812899,1751731841151,-460.0,0.00019178,2]
[369812901,1751731841161,-460.0,0.00019178,2]
[369812903,1751731841170,-1239.31,0.00019178,2]
[369812905,1751731841180,-1411.87,0.00019178,2]
[369812907,1751731841191,-460.0,0.00019178,2]
[369812909,1751731841200,-460.0,0.00019178,2]
[369812911,1751731841210,-460.0,0.00019178,2]
[369812913,1751731841220,-460.0,0.00019178,2]
[369812915,1751731841229,-460.0,0.00019178,2]
[369812917,1751731841240,-525.95,0.00019178,2]
[369812919,1751731841249,-460.0,0.00019178,2]
[369812921,1751731841259,-2825.37,0.00019178,2]
[369812923,1751731841268,-5768.89,0.00019178,2]
[369812925,1751731841278,-460.0,0.00019178,2]
[369812927,1751731841288,-1036.78,0.00019178,2]
[369812929,1751731841298,-460.0,0.00019178,2]
[369812931,1751731841308,-460.0,0.00019178,2]
[369812932,1751731841318,-530.96,0.00019178,2]
[369812934,1751731841327,-460.0,0.00019178,2]
[369812936,1751731841337,-460.0,0.00019178,2]
[369812938,1751731841347,-460.0,0.00019178,2]
[369812940,1751731841357,-460.0,0.00019178,2]
[369812942,1751731841367,-1123.07,0.00019178,2]
[369812944,1751731841376,-460.0,0.00019178,2]
[369812946,1751731841385,-787.3,0.00019178,2]
[369812948,1751731841395,-460.0,0.00019178,2]
[369812950,1751731841404,-460.0,0.00019178,2]
[369812952,1751731841416,-460.0,0.00019178,2]
[369812954,1751731841425,-460.0,0.00019178,2]
[369812956,1751731841435,-460.0,0.00019178,2]
[369812958,1751731841444,-470.91,0.00019178,2]
[369812960,1751731841454,-460.0,0.00019178,2]
[369812962,1751731841463,-460.0,0.00019178,2]
[369812964,1751731841472,-460.0,0.00019178,2]
[369812966,1751731841482,-460.0,0.00019178,2]
[369812968,1751731841492,-460.0,0.00019178,2]
[369812970,1751731841501,-711.5,0.00019178,2]
[369812972,1751731841511,-461.82,0.00019178,2]
[369812973,1751731841520,-460.0,0.00019178,2]
[369812974,1751731841530,-460.0,0.00019178,2]
[369812975,1751731841539,-460.0,0.00019178,2]
[369812976,1751731841549,-460.0,0.00019178,2]
[369812977,1751731841558,-460.0,0.00019178,2]
[369812978,1751731841567,-460.0,0.00019178,2]
[369812979,1751731841576,-460.0,0.00019178,2]
[369812980,1751731841586,-463.12385683,0.00019178,2]
[369812981,1751731841596,-460.0,0.00019178,2]
[369812982,1751731841606,-634.25,0.00019178,2]
[369812983,1751731841616,-512.39,0.00019178,2]
[369812984,1751731841626,-460.0,0.00019178,2]
[369812985,1751731841636,-460.0,0.00019178,2]
[369812986,1751731841646,-1022.49,0.00019178,2]
[369812987,1751731841655,-477.93,0.00019178,2]
[369812988,1751731841665,-460.0,0.00019178,2]
[369812989,1751731841675,-460.0,0.00019178,2]
[369812990,1751731841684,-555.51,0.00019178,2]
[369812991,1751731841694,-460.0,0.00019178,2]
[369812992,1751731841703,-460.0,0.00019178,2]
[369812993,1751731841713,-460.0,0.00019178,2]
[369812994,1751731841722,-460.0,0.00019178,2]
[369812995,1751731841731,-460.0,0.00019178,2]
[369812996,1751731841740,-4372.65,0.00019178,2]
[369812997,1751731841749,-237.37171201,0.00019178,2]
[369812998,1751731841759,-812.49,0.00019178,2]
[369812999,1751731841768,-491.95,0.00019178,2]
[369813000,1751731841777,-306.18551021,0.00019178,2]
[369813001,1751731841786,-460.0,0.00019178,2]
[369813002,1751731841795,-460.0,0.00019178,2]
[369813003,1751731841805,-460.0,0.00019178,2]
[369813004,1751731841814,-460.0,0.00019178,2]
[369813005,1751731841823,-1729.46,0.00019178,2]
[369813006,1751731841832,-2630.7,0.00019178,2]
[369813007,1751731841843,-460.0,0.00019178,2]
[369813008,1751731841857,-4642.57,0.00019178,2]
[369813009,1751731841867,-500.0,0.00019178,2]
[369813010,1751731841876,-500.0,0.00019178,2]
[369813011,1751731841887,-500.0,0.00019178,2]
[369813012,1751731841896,-520.57,0.00019178,2]
[369813013,1751731841906,-460.0,0.00019178,2]
[369813014,1751731841915,-607.17,0.00019178,2]
[369813015,1751731841925,-3063.24,0.00019178,2]
[369813016,1751731841934,-460.0,0.00019178,2]
[369813017,1751731841944,-460.0,0.00019178,2]
[369813018,1751731841953,-460.0,0.00019178,2]
[369813019,1751731841963,-460.0,0.00019178,2]
[369813020,1751731841972,-721.27,0.00019178,2]
[369813022,1751731841982,-1146.83,0.00019178,2]
[369813024,1751731841991,-992.43,0.00019178,2]
[369813026,1751731842000,-573.32,0.00019178,2]
[369813028,1751731842009,-592.05,0.00019178,2]
[369813030,1751731842019,-460.0,0.00019178,2]
[369813032,1751731842030,-460.0,0.00019178,2]
[369813034,1751731842039,-460.0,0.00019178,2]
[369813036,1751731842049,-460.0,0.00019178,2]
[369813038,1751731842059,-555.0,0.00019178,2]
[369813040,1751731842068,-3070.89,0.00019178,2]
[369813042,1751731842077,-460.0,0.00019178,2]
[369813044,1751731842087,-460.0,0.00019178,2]
[369813046,1751731842096,-780.19,0.00019178,2]
[369813048,1751731842106,-460.0,0.00019178,2]
[369813050,1751731842115,-460.0,0.00019178,2]
[369813052,1751731842124,-460.0,0.00019178,2]
[369813054,1751731842136,-2122.58,0.00019178,2]
[369813057,1751731842149,-3364.0,0.00019178,2]
[369813059,1751731842163,-460.0,0.00019178,2]
[369813062,1751731842176,-460.0,0.00019178,2]
[369813064,1751731842189,-460.0,0.00019178,2]
[369813066,1751731842202,-460.0,0.00019178,2]
[369813068,1751731842212,-500.0,0.00019178,2]
[369813071,1751731842224,-500.0,0.00019178,2]
[369813073,1751731842238,-584.35,0.00019178,2]
[369813075,1751731842250,-460.0,0.00019178,2]
[369813078,1751731842262,-460.0,0.00019178,2]
[369813080,1751731842275,-460.0,0.00019178,2]
[369813082,1751731842287,-954.19,0.00019178,2]
[369813084,1751731842300,-460.0,0.00019178,2]
[369813087,1751731842311,-460.0,0.00019178,2]
[369813089,1751731842323,-486.49,0.00019178,2]
[369813091,1751731842336,-569.53,0.00019178,2]
[369813093,1751731842349,-806.65,0.00019178,2]
[369813096,1751731842360,-460.0,0.00019178,2]
[369813098,1751731842373,-460.0,0.00019178,2]
[369813100,1751731842384,-460.0,0.00019178,2]
[369813102,1751731842395,-460.0,0.00019178,2]
[369813104,1751731842407,-1088.14,0.00019178,2]
[369813107,1751731842417,-386.89979037,0.00019178,2]
[369813109,1751731842428,-1223.45,0.00019178,2]
[369813111,1751731842441,-572.6,0.00019178,2]
[369813113,1751731842453,-460.0,0.00019178,2]
[369813115,1751731842464,-7014.68,0.00019178,2]
[369813118,1751731842476,-460.0,0.00019178,2]
[369813120,1751731842486,-460.0,0.00019178,2]
[369813122,1751731842496,-460.0,0.00019178,2]
[369813124,1751731842507,-460.0,0.00019178,2]
[369813126,1751731842519,-460.0,0.00019178,2]
[369813128,1751731842530,-460.0,0.00019178,2]
[369813130,1751731842542,-463.74128595,0.00019178,2]
[369813133,1751731842555,-569.66,0.00019178,2]
[369813135,1751731842566,-460.0,0.00019178,2]
[369813137,1751731842578,-460.0,0.00019178,2]
[369813140,1751731842600,-688.25,0.00019178,2]
[369813143,1751731842618,-1054.12,0.00019178,2]
[369813146,1751731842633,-460.0,0.00019178,2]
[369813149,1751731842648,-500.81,0.00019178,2]
[369813151,1751731842664,-2098.47,0.00019178,2]
[369813154,1751731842678,-1178.33,0.00019178,2]
[369813156,1751731842692,-616.6,0.00019178,2]
[369813158,1751731842702,-460.0,0.00019178,2]
[369813160,1751731842713,-460.0,0.00019178,2]
[369813163,1751731842723,-1774.23,0.00019178,2]
[369813165,1751731842733,-4122.88,0.00019178,2]
[369813167,1751731842745,-460.0,0.00019178,2]
[369813169,1751731842758,-460.0,0.00019178,2]
[369813172,1751731842772,-460.0,0.00019178,2]
[369813174,1751731842787,-460.0,0.00019178,2]
[369813177,1751731842800,-445.62299843,0.00019178,2]
[369813179,1751731842811,-1513.19,0.00019178,2]
[369813181,1751731842822,-586.04239242,0.00019178,2]
[369813183,1751731842833,-460.0,0.00019178,2]
[369813186,1751731842847,-460.0,0.00019178,2]
[369813188,1751731842861,-460.0,0.00019178,2]
[369813190,1751731842876,-460.0,0.00019178,2]
[369813193,1751731842888,-666.0,0.00019178,2]
[369813195,1751731842898,-293.0301,0.00019178,2]
[369813197,1751731842909,-302.51600165,0.0001919,2]
[369813199,1751731842919,-203.40307185,0.00019284,2]
[369813202,1751731842932,-34622.78603705,0.00019329,2]
[369813205,1751731842944,-500.0,0.00019451,2]
[369813209,1751731842955,-500.0,0.00019451,2]
[369813212,1751731842967,-283.00823146,0.00019451,2]
[369813215,1751731842980,-500.0,0.00019451,2]
[369813218,1751731842992,-603.77725191,0.00019451,2]
[369813221,1751731843004,-500.0,0.00019451,2]
[369813223,1751731843017,-500.0,0.00019451,2]
[369813225,1751731843030,-500.0,0.00019451,2]
[369813228,1751731843042,-500.0,0.00019451,2]
[369813230,1751731843054,-500.0,0.00019451,2]
[369813232,1751731843066,-500.0,0.00019451,2]
[369813234,1751731843078,-500.0,0.00019451,2]
[369813237,1751731843090,-212.36946928,0.00019451,2]
[369813239,1751731843102,-500.0,0.00019451,2]
[369813241,1751731843114,-500.0,0.00019451,2]
[369813243,1751731843126,-500.0,0.00019451,2]
[369813246,1751731843139,-500.0,0.00019451,2]
[369813248,1751731843150,-500.0,0.00019451,2]
[369813250,1751731843165,-500.0,0.00019451,2]
[369813253,1751731843182,-500.0,0.00019451,2]
[369813255,1751731843196,-604.03934125,0.00019451,2]
[369813258,1751731843208,-604.03934125,0.00019451,2]
[369813260,1751731843220,-604.03934125,0.00019451,2]
[369813262,1751731843235,-604.03934125,0.00019451,2]
[369813265,1751731843247,-604.03934125,0.00019451,2]
[369813267,1751731843260,-604.03934125,0.00019451,2]
[369813269,1751731843272,-604.03934125,0.00019451,2]
[369813271,1751731843284,-604.03934125,0.00019451,2]
[369813274,1751731843296,-688.60484901,0.00019451,2]
[369813276,1751731843309,-688.60484901,0.00019451,2]
[369813278,1751731843321,-688.60484901,0.00019451,2]
[369813280,1751731843332,-688.60484901,0.00019451,2]
[369813283,1751731843344,-1280.55,0.00019451,2]
[369813285,1751731843355,-1717.13,0.00019451,2]
[369813287,1751731843366,-460.0,0.00019451,2]
[369813289,1751731843377,-620.11,0.00019451,2]
[369813292,1751731843389,-2238.09,0.00019451,2]
[369813294,1751731843402,-460.0,0.00019451,2]
[369813296,1751731843413,-1653.72,0.00019451,2]
[369813298,1751731843424,-4788.46842871,0.00019452,2]
[369813301,1751731843436,-2101.33015726,0.00019452,2]
[369813303,1751731843447,-460.0,0.00019452,2]
[369813305,1751731843458,-460.0,0.00019452,2]
[369813307,1751731843469,-460.0,0.00019452,2]
[369813309,1751731843481,-460.0,0.00019452,2]
[369813312,1751731843492,-460.0,0.00019452,2]
[369813314,1751731843503,-460.0,0.00019452,2]
[369813316,1751731843515,-460.0,0.00019452,2]
[369813318,1751731843526,-460.0,0.00019452,2]
[369813320,1751731843537,-460.0,0.00019452,2]
[369813323,1751731843548,-460.0,0.00019452,2]
[369813325,1751731843560,-460.0,0.00019452,2]
[369813327,1751731843571,-460.0,0.00019452,2]
[369813329,1751731843583,-172.75,0.00019452,2]
[369813331,1751731843594,-460.0,0.00019452,2]
[369813333,1751731843604,-460.0,0.00019452,2]
[369813335,1751731843615,-510.89,0.00019452,2]
[369813338,1751731843627,-460.0,0.00019452,2]
[369813340,1751731843638,-460.0,0.00019452,2]
[369813343,1751731843650,-460.0,0.00019452,2]
[369813345,1751731843662,-460.0,0.00019452,2]
[369813347,1751731843674,-460.0,0.00019452,2]
[369813350,1751731843687,-460.0,0.00019452,2]
[369813352,1751731843700,-460.0,0.00019452,2]
[369813354,1751731843711,-460.0,0.00019452,2]
[369813356,1751731843723,-460.0,0.00019452,2]
[369813358,1751731843734,-460.0,0.00019452,2]
[369813360,1751731843746,-460.0,0.00019452,2]
[369813363,1751731843758,-459.14697388,0.00019452,2]
[369813365,1751731843770,-821.16,0.00019452,2]
[369813367,1751731843783,-460.0,0.00019452,2]
[369813369,1751731843794,-460.0,0.00019452,2]
[369813371,1751731843805,-460.0,0.00019452,2]
[369813374,1751731843816,-460.0,0.00019452,2]
[369813376,1751731843827,-460.0,0.00019452,2]
[369813378,1751731843840,-460.0,0.00019452,2]
[369813380,1751731843855,-874.47,0.00019452,2]
[369813382,1751731843867,-460.0,0.00019452,2]
[369813384,1751731843878,-460.0,0.00019452,2]
[369813387,1751731843890,-460.0,0.00019452,2]
[369813389,1751731843901,-460.0,0.00019452,2]
[369813391,1751731843912,-313.18317917,0.00019452,2]
[369813393,1751731843924,-777.05,0.00019452,2]
[369813395,1751731843935,-460.0,0.00019452,2]
[369813397,1751731843946,-460.0,0.00019452,2]
[369813399,1751731843957,-460.0,0.00019452,2]
[369813402,1751731843968,-460.0,0.00019452,2]
[369813404,1751731843979,-460.0,0.00019452,2]
[369813406,1751731843991,-293.07384665,0.00019452,2]
[369813408,1751731844002,-460.0,0.00019452,2]